[Event "Early-Titled-Tuesday-Blitz-February-20-2024"]
[Site "Chess.com"]
[Date "2024.02.20"]
[Round "6"]
[White "mishanick"]
[Black "BardArtem"]
[Result "1-0"]
[WhiteElo "3045"]
[BlackElo "2775"]
[TimeControl "180+1"]
[EndTime "9:09:47 PST"]
[Termination "mishanick won by checkmate"]

1. d4 {[%clk 0:03:00.9]} 1... d5 {[%clk 0:02:58.3]} 2. c4 {[%clk 0:03:01.3]}
2... c6 {[%clk 0:02:57.2]} 3. Nc3 {[%clk 0:03:01.7]} 3... Nf6 {[%clk 0:02:57.5]}
4. Nf3 {[%clk 0:03:02.3]} 4... a6 {[%clk 0:02:57.6]} 5. c5 {[%clk 0:03:00.7]}
5... Nbd7 {[%clk 0:02:57.1]} 6. Bf4 {[%clk 0:02:59.6]} 6... Nh5 {[%clk
0:02:57.4]} 7. Bd2 {[%clk 0:02:59.6]} 7... Nhf6 {[%clk 0:02:56.8]} 8. g3 {[%clk
0:03:00.1]} 8... g6 {[%clk 0:02:56.6]} 9. Bg2 {[%clk 0:03:00.8]} 9... Bg7 {[%clk
0:02:57.2]} 10. O-O {[%clk 0:03:01.4]} 10... O-O {[%clk 0:02:57.8]} 11. Qc2
{[%clk 0:03:02]} 11... Re8 {[%clk 0:02:57.7]} 12. Rad1 {[%clk 0:02:58.3]} 12...
e5 {[%clk 0:02:39.8]} 13. dxe5 {[%clk 0:02:57.8]} 13... Ng4 {[%clk 0:02:21.3]}
14. e4 {[%clk 0:02:57.8]} 14... Ndxe5 {[%clk 0:01:57.7]} 15. exd5 {[%clk
0:02:54.9]} 15... Nxf3+ {[%clk 0:01:53.5]} 16. Bxf3 {[%clk 0:02:55.8]} 16... Ne5
{[%clk 0:01:54.1]} 17. Bg2 {[%clk 0:02:48.8]} 17... Bg4 {[%clk 0:01:54]} 18. d6
{[%clk 0:02:26.8]} 18... Bxd1 {[%clk 0:01:52]} 19. Rxd1 {[%clk 0:02:27.7]} 19...
Nd7 {[%clk 0:01:47]} 20. Ne4 {[%clk 0:02:20.5]} 20... Nf6 {[%clk 0:01:38.2]} 21.
Bg5 {[%clk 0:02:18.9]} 21... h6 {[%clk 0:01:38.4]} 22. Bxf6 {[%clk 0:01:36]}
22... Bxf6 {[%clk 0:01:39.3]} 23. Qb3 {[%clk 0:01:36.3]} 23... Rb8 {[%clk
0:01:35.3]} 24. h4 {[%clk 0:01:30.6]} 24... Re5 {[%clk 0:01:28.2]} 25. Qc4
{[%clk 0:01:14.1]} 25... Kg7 {[%clk 0:01:18.4]} 26. b4 {[%clk 0:01:13]} 26... a5
{[%clk 0:01:03]} 27. a3 {[%clk 0:00:58.6]} 27... axb4 {[%clk 0:01:03]} 28. axb4
{[%clk 0:00:59.5]} 28... Ra8 {[%clk 0:01:02.3]} 29. Rd3 {[%clk 0:00:58.4]} 29...
Ra1+ {[%clk 0:00:54.8]} 30. Kh2 {[%clk 0:00:58.3]} 30... Re1 {[%clk 0:00:55.4]}
31. Nd2 {[%clk 0:00:31]} 31... Re8 {[%clk 0:00:51]} 32. Nf3 {[%clk 0:00:28.5]}
32... R1e2 {[%clk 0:00:48.7]} 33. Kg1 {[%clk 0:00:28.8]} 33... Qd7 {[%clk
0:00:44.2]} 34. Bf1 {[%clk 0:00:27.7]} 34... R2e4 {[%clk 0:00:42.8]} 35. Qb3
{[%clk 0:00:25]} 35... Qg4 {[%clk 0:00:42.1]} 36. Nh2 {[%clk 0:00:21.4]} 36...
Qe6 {[%clk 0:00:38.7]} 37. Nf3 {[%clk 0:00:15.6]} 37... Qxb3 {[%clk 0:00:37.9]}
38. Rxb3 {[%clk 0:00:16.5]} 38... Ra8 {[%clk 0:00:36.8]} 39. b5 {[%clk
0:00:15.9]} 39... Ra5 {[%clk 0:00:27.7]} 40. Kg2 {[%clk 0:00:15.8]} 40... g5
{[%clk 0:00:25.7]} 41. hxg5 {[%clk 0:00:15.7]} 41... hxg5 {[%clk 0:00:26.6]} 42.
Bd3 {[%clk 0:00:16.1]} 42... Re8 {[%clk 0:00:19.3]} 43. Nd2 {[%clk 0:00:15.9]}
43... Ra2 {[%clk 0:00:15.6]} 44. Ne4 {[%clk 0:00:15.7]} 44... Bd4 {[%clk
0:00:16.2]} 45. bxc6 {[%clk 0:00:15.7]} 45... bxc6 {[%clk 0:00:14.7]} 46. Rb7
{[%clk 0:00:14.3]} 46... Ra3 {[%clk 0:00:11]} 47. Bc2 {[%clk 0:00:05.6]} 47...
Ra2 {[%clk 0:00:10]} 48. Bb3 {[%clk 0:00:06.1]} 48... Ra3 {[%clk 0:00:07.8]} 49.
Rxf7+ {[%clk 0:00:06.1]} 49... Kg6 {[%clk 0:00:08.3]} 50. d7 {[%clk 0:00:06.7]}
50... Rd8 {[%clk 0:00:06.9]} 51. Be6 {[%clk 0:00:07]} 51... Ra7 {[%clk
0:00:03.2]} 52. Nd6 {[%clk 0:00:07.4]} 52... g4 {[%clk 0:00:01.7]} 53. Bf5+
{[%clk 0:00:07.5]} 53... Kg5 {[%clk 0:00:02.3]} 54. Ne4+ {[%clk 0:00:07.5]}
54... Kh6 {[%clk 0:00:02.1]} 55. Rh7# {[%clk 0:00:08.4]} 1-0

[Event "Early-Titled-Tuesday-Blitz-February-20-2024"]
[Site "Chess.com"]
[Date "2024.02.20"]
[Round "6"]
[White "Grandelicious"]
[Black "AvitalBor"]
[Result "1/2-1/2"]
[WhiteElo "2892"]
[BlackElo "2768"]
[TimeControl "180+1"]
[EndTime "9:09:48 PST"]
[Termination "Game drawn - insufficient material"]

1. d4 {[%clk 0:03:00.9]} 1... Nf6 {[%clk 0:02:59.4]} 2. Nf3 {[%clk 0:03:01]}
2... g6 {[%clk 0:02:59.8]} 3. g3 {[%clk 0:02:59.7]} 3... Bg7 {[%clk 0:03:00.1]}
4. Bg2 {[%clk 0:03:00.4]} 4... O-O {[%clk 0:03:00.6]} 5. O-O {[%clk 0:03:00.7]}
5... d5 {[%clk 0:03:00.9]} 6. c3 {[%clk 0:02:58.3]} 6... a5 {[%clk 0:02:58.4]}
7. Bf4 {[%clk 0:02:54]} 7... Ne4 {[%clk 0:02:54]} 8. Qc1 {[%clk 0:02:51.4]} 8...
Re8 {[%clk 0:02:45.7]} 9. Nbd2 {[%clk 0:02:45.9]} 9... Bf5 {[%clk 0:02:38.8]}
10. Nh4 {[%clk 0:02:36.1]} 10... Nxd2 {[%clk 0:02:38.2]} 11. Qxd2 {[%clk
0:02:37]} 11... Be6 {[%clk 0:02:34.1]} 12. e4 {[%clk 0:02:27.2]} 12... c6 {[%clk
0:02:29.9]} 13. Rfe1 {[%clk 0:02:26.5]} 13... Nd7 {[%clk 0:02:27.7]} 14. Bh6
{[%clk 0:02:24.6]} 14... Nb6 {[%clk 0:02:17.7]} 15. Bxg7 {[%clk 0:02:23.1]}
15... Kxg7 {[%clk 0:02:18.6]} 16. e5 {[%clk 0:02:15.1]} 16... Qc8 {[%clk
0:02:14.3]} 17. f4 {[%clk 0:02:04.5]} 17... Nc4 {[%clk 0:02:06.8]} 18. Qf2
{[%clk 0:02:04]} 18... a4 {[%clk 0:02:05.4]} 19. Rf1 {[%clk 0:02:02.9]} 19...
Bf5 {[%clk 0:01:59.5]} 20. b3 {[%clk 0:01:56.4]} 20... axb3 {[%clk 0:01:58.2]}
21. axb3 {[%clk 0:01:57.3]} 21... Na5 {[%clk 0:01:44.6]} 22. Ra3 {[%clk
0:01:51.3]} 22... b6 {[%clk 0:01:26]} 23. Rfa1 {[%clk 0:01:50.2]} 23... Rb8
{[%clk 0:01:25.9]} 24. b4 {[%clk 0:01:41.5]} 24... Nc4 {[%clk 0:01:25.3]} 25.
Ra7 {[%clk 0:01:42.2]} 25... Rb7 {[%clk 0:01:19.4]} 26. Nxf5+ {[%clk 0:01:39.3]}
26... gxf5 {[%clk 0:01:19.4]} 27. Bh3 {[%clk 0:01:36.3]} 27... e6 {[%clk
0:01:17.7]} 28. g4 {[%clk 0:01:30.8]} 28... fxg4 {[%clk 0:01:14.8]} 29. Bxg4
{[%clk 0:01:31.7]} 29... Qc7 {[%clk 0:00:56.9]} 30. Rxb7 {[%clk 0:01:20]} 30...
Qxb7 {[%clk 0:00:57.8]} 31. f5 {[%clk 0:00:03.3]} 31... Kh8 {[%clk 0:00:56.8]}
32. fxe6 {[%clk 0:00:03.3]} 32... fxe6 {[%clk 0:00:57.7]} 33. Qf6+ {[%clk
0:00:03.7]} 33... Qg7 {[%clk 0:00:57.8]} 34. Rf1 {[%clk 0:00:04.3]} 34... Ne3
{[%clk 0:00:54.9]} 35. Qxg7+ {[%clk 0:00:03.7]} 35... Kxg7 {[%clk 0:00:55.8]}
36. Rf4 {[%clk 0:00:04.3]} 36... Kg6 {[%clk 0:00:32.4]} 37. Kf2 {[%clk
0:00:04.7]} 37... Nxg4+ {[%clk 0:00:27.5]} 38. Rxg4+ {[%clk 0:00:05.6]} 38...
Kf5 {[%clk 0:00:28.1]} 39. Kf3 {[%clk 0:00:06.3]} 39... Ra8 {[%clk 0:00:25.8]}
40. Rf4+ {[%clk 0:00:06.3]} 40... Kg5 {[%clk 0:00:24.6]} 41. h4+ {[%clk
0:00:06.8]} 41... Kh5 {[%clk 0:00:23.5]} 42. Rf6 {[%clk 0:00:07.7]} 42... Ra3
{[%clk 0:00:23.6]} 43. Rxe6 {[%clk 0:00:08.2]} 43... Rxc3+ {[%clk 0:00:24]} 44.
Kf4 {[%clk 0:00:08.5]} 44... Rc4 {[%clk 0:00:22]} 45. Kf5 {[%clk 0:00:09.1]}
45... Rxb4 {[%clk 0:00:17]} 46. Rxc6 {[%clk 0:00:08.9]} 46... Rxd4 {[%clk
0:00:17.6]} 47. e6 {[%clk 0:00:09.6]} 47... Re4 {[%clk 0:00:17.2]} 48. Rxb6
{[%clk 0:00:10.1]} 48... Kxh4 {[%clk 0:00:16.1]} 49. Rd6 {[%clk 0:00:09.6]}
49... h5 {[%clk 0:00:09.3]} 50. Rxd5 {[%clk 0:00:10.1]} 50... Rxe6 {[%clk
0:00:06.5]} 51. Kxe6 {[%clk 0:00:10.3]} 51... Kg4 {[%clk 0:00:06.5]} 52. Ke5
{[%clk 0:00:10.3]} 52... h4 {[%clk 0:00:06.5]} 53. Ke4 {[%clk 0:00:09.7]} 53...
h3 {[%clk 0:00:06]} 54. Ke3 {[%clk 0:00:08.2]} 54... h2 {[%clk 0:00:05.4]} 55.
Rd1 {[%clk 0:00:07.8]} 55... Kg3 {[%clk 0:00:05.6]} 56. Ra1 {[%clk 0:00:07.1]}
56... Kg2 {[%clk 0:00:05.8]} 57. Kf4 {[%clk 0:00:07.2]} 57... h1=Q {[%clk
0:00:05.6]} 58. Rxh1 {[%clk 0:00:07.9]} 58... Kxh1 {[%clk 0:00:06.3]} 1/2-1/2

[Event "Early-Titled-Tuesday-Blitz-February-20-2024"]
[Site "Chess.com"]
[Date "2024.02.20"]
[Round "6"]
[White "AsaHoffmann"]
[Black "Natalya_Buksa"]
[Result "0-1"]
[WhiteElo "2360"]
[BlackElo "2601"]
[TimeControl "180+1"]
[EndTime "9:09:49 PST"]
[Termination "Natalya_Buksa won by resignation"]

1. d4 {[%clk 0:02:59.7]} 1... d5 {[%clk 0:02:59.8]} 2. Bg5 {[%clk 0:02:55.5]}
2... Nf6 {[%clk 0:02:58.9]} 3. Nd2 {[%clk 0:02:55.1]} 3... Nbd7 {[%clk
0:02:57.1]} 4. e3 {[%clk 0:02:54.5]} 4... e6 {[%clk 0:02:57.4]} 5. f4 {[%clk
0:02:54.5]} 5... Be7 {[%clk 0:02:56.9]} 6. Ngf3 {[%clk 0:02:54.4]} 6... Ne4
{[%clk 0:02:56.3]} 7. Nxe4 {[%clk 0:02:51.8]} 7... dxe4 {[%clk 0:02:57.2]} 8.
Bxe7 {[%clk 0:02:51.1]} 8... Qxe7 {[%clk 0:02:57.2]} 9. Ne5 {[%clk 0:02:50.5]}
9... Nxe5 {[%clk 0:02:57.4]} 10. fxe5 {[%clk 0:02:50.1]} 10... O-O {[%clk
0:02:56.8]} 11. c3 {[%clk 0:02:49.9]} 11... b6 {[%clk 0:02:54.6]} 12. Qg4 {[%clk
0:02:49.2]} 12... Bb7 {[%clk 0:02:54.6]} 13. Be2 {[%clk 0:02:44.6]} 13... c5
{[%clk 0:02:54.9]} 14. O-O {[%clk 0:02:44]} 14... cxd4 {[%clk 0:02:55.2]} 15.
exd4 {[%clk 0:02:43.7]} 15... a6 {[%clk 0:02:40.6]} 16. Rae1 {[%clk 0:02:42.7]}
16... b5 {[%clk 0:02:39.9]} 17. a3 {[%clk 0:02:40.9]} 17... Bd5 {[%clk
0:02:38.3]} 18. Bd1 {[%clk 0:02:39.9]} 18... a5 {[%clk 0:02:23.4]} 19. Bc2
{[%clk 0:02:39.3]} 19... b4 {[%clk 0:02:19]} 20. axb4 {[%clk 0:02:39.1]} 20...
axb4 {[%clk 0:02:19.2]} 21. Bxe4 {[%clk 0:02:39]} 21... Bxe4 {[%clk 0:02:15.7]}
22. Rxe4 {[%clk 0:02:38.6]} 22... b3 {[%clk 0:02:15.5]} 23. h4 {[%clk
0:02:37.2]} 23... Ra2 {[%clk 0:02:13.5]} 24. Rf2 {[%clk 0:02:36.7]} 24... Ra1+
{[%clk 0:02:10.5]} 25. Kh2 {[%clk 0:02:36.5]} 25... Rc1 {[%clk 0:02:07.1]} 26.
Ref4 {[%clk 0:02:35.7]} 26... Rc2 {[%clk 0:02:03.1]} 27. Qf3 {[%clk 0:02:24.4]}
27... Rc8 {[%clk 0:01:42.6]} 28. Qe4 {[%clk 0:02:17.8]} 28... Rxf2 {[%clk
0:00:52.8]} 29. Rxf2 {[%clk 0:02:16.9]} 29... Qa7 {[%clk 0:00:53.4]} 30. Qf3
{[%clk 0:02:08]} 30... h6 {[%clk 0:00:51.6]} 31. Kh3 {[%clk 0:02:00.7]} 31...
Rc7 {[%clk 0:00:50.4]} 32. Rf1 {[%clk 0:01:50.3]} 32... Qa2 {[%clk 0:00:49.9]}
33. Qf2 {[%clk 0:01:42.9]} 33... g6 {[%clk 0:00:47.5]} 34. c4 {[%clk 0:01:41]}
34... Qa7 {[%clk 0:00:44.9]} 35. c5 {[%clk 0:01:40.5]} 35... Qa4 {[%clk
0:00:41.7]} 36. Qe3 {[%clk 0:01:38.1]} 36... Rd7 {[%clk 0:00:42]} 37. Rf4 {[%clk
0:01:32.8]} 37... Qa1 {[%clk 0:00:36]} 38. Rf3 {[%clk 0:01:29]} 38... Qxb2
{[%clk 0:00:28.3]} 39. Qxb3 {[%clk 0:01:27.5]} 39... Qxd4 {[%clk 0:00:28.2]} 40.
Qe3 {[%clk 0:01:24.8]} 40... Qxe3 {[%clk 0:00:23.4]} 41. Rxe3 {[%clk 0:01:24.6]}
41... Rc7 {[%clk 0:00:21.7]} 42. Rc3 {[%clk 0:01:24.1]} 42... Kf8 {[%clk
0:00:22.3]} 43. Kg4 {[%clk 0:01:24]} 43... Ke8 {[%clk 0:00:21.8]} 44. Kf4 {[%clk
0:01:24.3]} 44... Kd8 {[%clk 0:00:22.1]} 45. Ke4 {[%clk 0:01:24.4]} 45... Ra7
{[%clk 0:00:21.8]} 46. Rc4 {[%clk 0:01:20.5]} 46... Kc7 {[%clk 0:00:22.3]} 47.
g4 {[%clk 0:01:19.7]} 47... Kc6 {[%clk 0:00:22.4]} 48. Kd4 {[%clk 0:01:13.4]}
48... Rd7+ {[%clk 0:00:22.6]} 49. Ke4 {[%clk 0:01:11.5]} 49... Rd1 {[%clk
0:00:21.9]} 50. Ra4 {[%clk 0:01:10]} 50... Re1+ {[%clk 0:00:21.1]} 51. Kf4
{[%clk 0:01:09.7]} 51... Kxc5 {[%clk 0:00:20.7]} 52. Ra7 {[%clk 0:01:07.6]}
52... Kd5 {[%clk 0:00:20.6]} 53. Rd7+ {[%clk 0:01:06.6]} 53... Kc6 {[%clk
0:00:21]} 54. Re7 {[%clk 0:01:04.7]} 54... Rf1+ {[%clk 0:00:20.2]} 55. Kg3
{[%clk 0:01:04.4]} 55... Kd5 {[%clk 0:00:19.9]} 56. Re8 {[%clk 0:01:01.2]} 56...
Kxe5 {[%clk 0:00:20]} 57. Rh8 {[%clk 0:01:00.9]} 57... Ra1 {[%clk 0:00:11.4]}
58. Rxh6 {[%clk 0:01:00.1]} 58... Ra3+ {[%clk 0:00:12]} 59. Kf2 {[%clk
0:00:58.4]} 59... Kf4 {[%clk 0:00:12.5]} 60. h5 {[%clk 0:00:54.6]} 60... gxh5
{[%clk 0:00:12]} 61. gxh5 {[%clk 0:00:54.5]} 61... Ra2+ {[%clk 0:00:09.8]} 62.
Ke1 {[%clk 0:00:54]} 62... Kg5 {[%clk 0:00:10.3]} 63. Rh7 {[%clk 0:00:52.8]}
63... f5 {[%clk 0:00:10.5]} 64. h6 {[%clk 0:00:52.6]} 64... Rh2 {[%clk
0:00:10.6]} 65. Rg7+ {[%clk 0:00:50.3]} 65... Kf6 {[%clk 0:00:10.5]} 66. Rh7
{[%clk 0:00:48.5]} 66... e5 {[%clk 0:00:10.8]} 67. Rh8 {[%clk 0:00:47.9]} 67...
Kg6 {[%clk 0:00:10.3]} 68. Rf8 {[%clk 0:00:46.2]} 68... Rxh6 {[%clk 0:00:09.6]}
69. Kf2 {[%clk 0:00:45.7]} 69... Kg5 {[%clk 0:00:09.9]} 70. Re8 {[%clk
0:00:45.2]} 70... Kf4 {[%clk 0:00:09]} 71. Rf8 {[%clk 0:00:43.9]} 71... Rh2+
{[%clk 0:00:09.2]} 72. Kg1 {[%clk 0:00:43.7]} 72... Ra2 {[%clk 0:00:10.1]} 73.
Kf1 {[%clk 0:00:42.7]} 73... e4 {[%clk 0:00:10.5]} 0-1

[Event "Early-Titled-Tuesday-Blitz-February-20-2024"]
[Site "Chess.com"]
[Date "2024.02.20"]
[Round "6"]
[White "SharapovEvgeny"]
[Black "Arystanner"]
[Result "1-0"]
[WhiteElo "2566"]
[BlackElo "2754"]
[TimeControl "180+1"]
[EndTime "9:09:52 PST"]
[Termination "SharapovEvgeny won by resignation"]

1. e4 {[%clk 0:03:00.1]} 1... c5 {[%clk 0:03:00.1]} 2. Nf3 {[%clk 0:02:59.9]}
2... e6 {[%clk 0:03:00.6]} 3. d4 {[%clk 0:02:59.9]} 3... cxd4 {[%clk 0:03:01.5]}
4. Nxd4 {[%clk 0:03:00.3]} 4... Nf6 {[%clk 0:03:02.1]} 5. Nc3 {[%clk 0:03:00.1]}
5... Nc6 {[%clk 0:03:01.9]} 6. Ndb5 {[%clk 0:02:59.7]} 6... Bc5 {[%clk
0:03:01.8]} 7. Bf4 {[%clk 0:02:58.8]} 7... O-O {[%clk 0:03:02]} 8. Bc7 {[%clk
0:02:58.7]} 8... Qe7 {[%clk 0:03:02.5]} 9. Bd6 {[%clk 0:02:59.2]} 9... Bxd6
{[%clk 0:03:02.8]} 10. Qxd6 {[%clk 0:02:59.3]} 10... Qd8 {[%clk 0:03:03.4]} 11.
O-O-O {[%clk 0:02:55.7]} 11... a6 {[%clk 0:03:03.2]} 12. Nd4 {[%clk 0:02:55.2]}
12... Ne7 {[%clk 0:03:03.6]} 13. f3 {[%clk 0:02:41.5]} 13... b5 {[%clk
0:03:03.7]} 14. Kb1 {[%clk 0:02:40.9]} 14... Ne8 {[%clk 0:03:03.3]} 15. Qg3
{[%clk 0:02:40.4]} 15... Bb7 {[%clk 0:03:03.4]} 16. Bd3 {[%clk 0:02:39.5]} 16...
b4 {[%clk 0:02:57]} 17. Nce2 {[%clk 0:02:38.3]} 17... Qb8 {[%clk 0:02:49.6]} 18.
Qxb8 {[%clk 0:02:35.5]} 18... Rxb8 {[%clk 0:02:48.1]} 19. e5 {[%clk 0:02:32.8]}
19... d6 {[%clk 0:02:43.7]} 20. exd6 {[%clk 0:02:31.7]} 20... Nxd6 {[%clk
0:02:44.3]} 21. Ng3 {[%clk 0:02:25.2]} 21... Nd5 {[%clk 0:02:43.4]} 22. Rhe1
{[%clk 0:02:22.8]} 22... a5 {[%clk 0:02:36.2]} 23. Ne4 {[%clk 0:02:22.1]} 23...
Rfd8 {[%clk 0:02:30.3]} 24. Nxd6 {[%clk 0:02:19.5]} 24... Rxd6 {[%clk
0:02:31.2]} 25. Be4 {[%clk 0:02:11]} 25... Rbd8 {[%clk 0:02:30]} 26. Kc1 {[%clk
0:02:05.7]} 26... g6 {[%clk 0:02:24.9]} 27. h4 {[%clk 0:02:04.6]} 27... h5
{[%clk 0:02:16.2]} 28. g4 {[%clk 0:02:01.8]} 28... hxg4 {[%clk 0:02:11.4]} 29.
fxg4 {[%clk 0:02:02]} 29... Nf6 {[%clk 0:02:00.5]} 30. Bxb7 {[%clk 0:01:56]}
30... Rxd4 {[%clk 0:02:00.7]} 31. Rxd4 {[%clk 0:01:54.1]} 31... Rxd4 {[%clk
0:02:01.6]} 32. g5 {[%clk 0:01:51.6]} 32... Ne8 {[%clk 0:01:37.5]} 33. Re4
{[%clk 0:01:49.4]} 33... Rxe4 {[%clk 0:01:27.8]} 34. Bxe4 {[%clk 0:01:49.1]}
34... Kf8 {[%clk 0:01:27.7]} 35. Kd2 {[%clk 0:01:48.6]} 35... Ke7 {[%clk
0:01:27.7]} 36. Ke3 {[%clk 0:01:48.8]} 36... Nd6 {[%clk 0:01:21.2]} 37. Kd4
{[%clk 0:01:42.9]} 37... Kd7 {[%clk 0:00:44.8]} 38. Bd3 {[%clk 0:01:42.7]} 38...
Nb7 {[%clk 0:00:33.9]} 39. Ke5 {[%clk 0:01:29.9]} 39... Ke7 {[%clk 0:00:34]} 40.
c3 {[%clk 0:01:23.7]} 40... Nc5 {[%clk 0:00:33]} 41. Bc2 {[%clk 0:01:22.3]}
41... bxc3 {[%clk 0:00:31.7]} 42. bxc3 {[%clk 0:01:22.3]} 42... Nd7+ {[%clk
0:00:32.6]} 43. Kd4 {[%clk 0:01:22.1]} 43... Kd6 {[%clk 0:00:33.5]} 44. Kc4
{[%clk 0:01:19.3]} 44... Ne5+ {[%clk 0:00:31.9]} 45. Kb5 {[%clk 0:01:17]} 45...
Nf3 {[%clk 0:00:31.2]} 46. Kxa5 {[%clk 0:01:15.6]} 46... Nxh4 {[%clk 0:00:31.8]}
47. Kb6 {[%clk 0:01:11.8]} 47... Nf3 {[%clk 0:00:31.6]} 48. a4 {[%clk
0:01:08.7]} 48... Ne5 {[%clk 0:00:31.8]} 49. a5 {[%clk 0:01:01.7]} 49... Nc4+
{[%clk 0:00:32]} 50. Ka6 {[%clk 0:00:55.9]} 50... Kc5 {[%clk 0:00:28.6]} 51. Bb3
{[%clk 0:00:46.1]} 51... Nd6 {[%clk 0:00:19.8]} 52. Ka7 {[%clk 0:00:42.8]} 52...
Kc6 {[%clk 0:00:18.4]} 53. c4 {[%clk 0:00:37.4]} 53... e5 {[%clk 0:00:14.8]} 54.
Kb8 {[%clk 0:00:32.9]} 54... Ne4 {[%clk 0:00:10.8]} 55. a6 {[%clk 0:00:30.4]}
55... Nc5 {[%clk 0:00:11.1]} 56. a7 {[%clk 0:00:30.3]} 56... Nd7+ {[%clk
0:00:06.2]} 57. Kc8 {[%clk 0:00:30.3]} 57... Nb6+ {[%clk 0:00:06.6]} 58. Kd8
{[%clk 0:00:29.9]} 58... e4 {[%clk 0:00:04]} 59. Ke7 {[%clk 0:00:29.2]} 59... e3
{[%clk 0:00:04.3]} 60. Bd1 {[%clk 0:00:28.9]} 60... Kc5 {[%clk 0:00:03]} 61.
Kxf7 {[%clk 0:00:28.8]} 61... Kxc4 {[%clk 0:00:03.6]} 62. Kxg6 {[%clk
0:00:28.9]} 62... Kd3 {[%clk 0:00:04]} 63. Kh7 {[%clk 0:00:28.8]} 63... Kd2
{[%clk 0:00:04.1]} 64. Bg4 {[%clk 0:00:28.8]} 1-0

[Event "Early-Titled-Tuesday-Blitz-February-20-2024"]
[Site "Chess.com"]
[Date "2024.02.20"]
[Round "6"]
[White "Dubs123"]
[Black "MaestroCheck"]
[Result "1-0"]
[WhiteElo "2381"]
[BlackElo "2545"]
[TimeControl "180+1"]
[EndTime "9:09:53 PST"]
[Termination "Dubs123 won by checkmate"]

1. d4 {[%clk 0:03:00.9]} 1... d5 {[%clk 0:02:59.5]} 2. c4 {[%clk 0:03:00]} 2...
c6 {[%clk 0:02:59.3]} 3. Nf3 {[%clk 0:02:49]} 3... Nf6 {[%clk 0:02:56.5]} 4. Nc3
{[%clk 0:02:47.2]} 4... e6 {[%clk 0:02:54.7]} 5. c5 {[%clk 0:02:44.2]} 5... b6
{[%clk 0:02:51.4]} 6. b4 {[%clk 0:02:34.8]} 6... a5 {[%clk 0:02:50.6]} 7. Na4
{[%clk 0:02:34.6]} 7... Nbd7 {[%clk 0:02:32.1]} 8. bxa5 {[%clk 0:02:24.2]} 8...
b5 {[%clk 0:02:19.1]} 9. Nb6 {[%clk 0:02:21.7]} 9... Rxa5 {[%clk 0:02:18.6]} 10.
Bd2 {[%clk 0:02:18]} 10... Ra7 {[%clk 0:02:14.3]} 11. Nxd7 {[%clk 0:02:16.2]}
11... Nxd7 {[%clk 0:02:08.9]} 12. e3 {[%clk 0:02:14.9]} 12... Be7 {[%clk
0:02:05.6]} 13. a4 {[%clk 0:02:12.6]} 13... bxa4 {[%clk 0:01:58.3]} 14. Rxa4
{[%clk 0:02:11.2]} 14... Qc7 {[%clk 0:01:58.8]} 15. Qa1 {[%clk 0:02:03.8]} 15...
Rxa4 {[%clk 0:01:49.2]} 16. Qxa4 {[%clk 0:02:04.7]} 16... O-O {[%clk 0:01:49]}
17. Be2 {[%clk 0:02:02.3]} 17... e5 {[%clk 0:01:46.4]} 18. O-O {[%clk
0:02:01.8]} 18... e4 {[%clk 0:01:46.4]} 19. Ne1 {[%clk 0:02:01.8]} 19... Nf6
{[%clk 0:01:43.2]} 20. Nc2 {[%clk 0:02:00.7]} 20... Bg4 {[%clk 0:01:41]} 21.
Bxg4 {[%clk 0:01:33.8]} 21... Nxg4 {[%clk 0:01:39.3]} 22. g3 {[%clk 0:01:34.3]}
22... Qd7 {[%clk 0:01:13.1]} 23. Nb4 {[%clk 0:01:23.9]} 23... Rc8 {[%clk
0:01:12]} 24. Ra1 {[%clk 0:01:17.1]} 24... Qf5 {[%clk 0:01:09.1]} 25. Be1 {[%clk
0:01:15.8]} 25... Qh5 {[%clk 0:01:07.5]} 26. h4 {[%clk 0:01:11.2]} 26... Qg6
{[%clk 0:00:26.3]} 27. Qa6 {[%clk 0:00:57.8]} 27... Qe6 {[%clk 0:00:25.9]} 28.
Qb7 {[%clk 0:00:52.6]} 28... g5 {[%clk 0:00:19.3]} 29. hxg5 {[%clk 0:00:44.3]}
29... Bxg5 {[%clk 0:00:18.2]} 30. Ra8 {[%clk 0:00:42.4]} 30... Rxa8 {[%clk
0:00:18.4]} 31. Qxa8+ {[%clk 0:00:42.5]} 31... Kg7 {[%clk 0:00:18.7]} 32. Qxc6
{[%clk 0:00:42.5]} 32... Qxc6 {[%clk 0:00:17.7]} 33. Nxc6 {[%clk 0:00:42.1]}
33... Kf6 {[%clk 0:00:18.3]} 34. Ba5 {[%clk 0:00:37.3]} 34... Ke6 {[%clk
0:00:18.2]} 35. Nd8+ {[%clk 0:00:36.1]} 35... Bxd8 {[%clk 0:00:13.4]} 36. Bxd8
{[%clk 0:00:36.5]} 36... Kd7 {[%clk 0:00:14]} 37. Bg5 {[%clk 0:00:35.2]} 37...
Kc6 {[%clk 0:00:13]} 38. Kg2 {[%clk 0:00:35.1]} 38... f6 {[%clk 0:00:08.7]} 39.
Bf4 {[%clk 0:00:34.1]} 39... f5 {[%clk 0:00:09.2]} 40. Bg5 {[%clk 0:00:33]}
40... Kd7 {[%clk 0:00:08.2]} 41. f3 {[%clk 0:00:31.7]} 41... exf3+ {[%clk
0:00:06.5]} 42. Kxf3 {[%clk 0:00:32.6]} 42... h6 {[%clk 0:00:06.4]} 43. Bf4
{[%clk 0:00:32.4]} 43... Kc6 {[%clk 0:00:05.9]} 44. Ke2 {[%clk 0:00:32.2]} 44...
Kd7 {[%clk 0:00:05.7]} 45. Kd3 {[%clk 0:00:31.9]} 45... h5 {[%clk 0:00:05.8]}
46. Ke2 {[%clk 0:00:29.3]} 46... Nf6 {[%clk 0:00:05.2]} 47. Kf3 {[%clk
0:00:28.8]} 47... Ne4 {[%clk 0:00:05.3]} 48. Be5 {[%clk 0:00:28.5]} 48... Ke6
{[%clk 0:00:05.4]} 49. c6 {[%clk 0:00:26.5]} 49... Ng5+ {[%clk 0:00:05.5]} 50.
Ke2 {[%clk 0:00:23.3]} 50... Nf7 {[%clk 0:00:05.6]} 51. c7 {[%clk 0:00:22.4]}
51... Kd7 {[%clk 0:00:04.6]} 52. Kf3 {[%clk 0:00:19.6]} 52... Nxe5+ {[%clk
0:00:01.2]} 53. dxe5 {[%clk 0:00:20.5]} 53... Kxc7 {[%clk 0:00:01.9]} 54. Kf4
{[%clk 0:00:20.8]} 54... d4 {[%clk 0:00:02.1]} 55. exd4 {[%clk 0:00:20.8]} 55...
h4 {[%clk 0:00:02.5]} 56. gxh4 {[%clk 0:00:21.7]} 56... Kc6 {[%clk 0:00:02.5]}
57. Kxf5 {[%clk 0:00:21.4]} 57... Kd5 {[%clk 0:00:03.4]} 58. e6 {[%clk
0:00:21.6]} 58... Kxd4 {[%clk 0:00:04.3]} 59. e7 {[%clk 0:00:22]} 59... Kc5
{[%clk 0:00:04.6]} 60. e8=Q {[%clk 0:00:22.3]} 60... Kd5 {[%clk 0:00:05.1]} 61.
h5 {[%clk 0:00:22.9]} 61... Kc4 {[%clk 0:00:05.7]} 62. h6 {[%clk 0:00:23.6]}
62... Kd4 {[%clk 0:00:06.6]} 63. h7 {[%clk 0:00:24.1]} 63... Kd3 {[%clk
0:00:07.5]} 64. h8=Q {[%clk 0:00:24.4]} 64... Kc4 {[%clk 0:00:07.6]} 65. Qg7
{[%clk 0:00:24.7]} 65... Kd3 {[%clk 0:00:07.1]} 66. Qgd7+ {[%clk 0:00:24.8]}
66... Kc4 {[%clk 0:00:07.4]} 67. Qec8+ {[%clk 0:00:25.5]} 67... Kb4 {[%clk
0:00:07.5]} 68. Qdb7+ {[%clk 0:00:26.4]} 68... Ka3 {[%clk 0:00:08.1]} 69. Qca8#
{[%clk 0:00:26.8]} 1-0